bitfinex-derivatives/quotes_BTCF0:USTF0_20250417
["timestamp","ask_amount","ask_price","bid_price","bid_amount"]
[1744904349092,0.1182166,84663.0,84662.0,0.36097711]
[1744904349791,0.1181366,84663.0,84662.0,0.36097711]
[1744904349986,0.1182166,84663.0,84662.0,0.47911511]
[1744904350298,0.1490377,84664.0,84662.0,0.47911511]
[1744904350299,0.0899701,84664.0,84663.0,0.1181366]
[1744904350592,0.23808694,84670.0,84669.0,0.1181282]
[1744904350791,0.18818694,84670.0,84669.0,0.4789282]
[1744904351092,0.11822961,84674.0,84673.0,0.1181226]
[1744904351288,0.32712526,84676.0,84675.0,0.1181198]
[1744904351590,0.26806456,84676.0,84675.0,0.1181198]
[1744904351793,0.14994616,84676.0,84675.0,0.3681198]
[1744904351993,0.00017711,84679.0,84675.0,0.25]
[1744904352195,0.1771593,84687.0,84678.0,0.3608]
[1744904352387,0.236213,84687.0,84686.0,0.4788963]
[1744904352784,0.236293,84687.0,84686.0,0.4788963]
[1744904353099,0.29357246,84717.0,84695.0,0.1180919]
[1744904353285,0.00010801,84704.0,84695.0,0.4788919]
[1744904353588,0.1231705,84696.0,84695.0,0.4788919]
[1744904353793,0.00508,84696.0,84695.0,0.5422919]
[1744904353989,0.1230905,84696.0,84695.0,0.5422919]
[1744904354185,0.1231705,84696.0,84695.0,0.5422919]
[1744904354392,0.1230905,84696.0,84695.0,0.5422919]
[1744904354588,0.1231705,84696.0,84695.0,0.5422919]
[1744904354787,0.1771284,84700.0,84699.0,0.1180864]
[1744904355303,0.0590411,84702.0,84701.0,0.1180836]
[1744904355508,0.1180836,84701.0,84700.0,0.0634]
[1744904355806,0.1180836,84701.0,84700.0,0.181485]
[1744904356114,0.1181636,84701.0,84700.0,0.181485]
[1744904356293,0.1181636,84701.0,84700.0,0.19056099]
[1744904357600,0.1181636,84701.0,84700.0,0.07247599]
[1744904357797,0.1181636,84701.0,84700.0,0.19056099]
[1744904361098,0.1180836,84701.0,84700.0,0.19056099]
[1744904361498,0.1181636,84701.0,84700.0,0.19056099]
[1744904365103,0.1180836,84701.0,84700.0,0.19056099]
[1744904365512,0.1181636,84701.0,84700.0,0.19056099]
[1744904365702,0.1180836,84701.0,84700.0,0.19056099]
[1744904365902,0.1181636,84701.0,84700.0,0.19056099]
[1744904367606,0.1498636,84701.0,84700.0,0.07247599]
[1744904367811,0.1816636,84701.0,84700.0,0.03937599]
[1744904368004,0.1816636,84701.0,84700.0,0.00907599]
[1744904368204,0.1180891,84697.0,84696.0,0.0315]
[1744904368406,0.1180891,84697.0,84696.0,0.1495905]
[1744904368914,0.1180891,84697.0,84696.0,0.1796905]
[1744904369305,0.1482891,84697.0,84696.0,0.1796905]
[1744904369512,0.1483691,84697.0,84696.0,0.1796905]
[1744904369904,0.1483691,84697.0,84696.0,0.0616]
[1744904370105,0.1797691,84697.0,84696.0,0.1796905]
[1744904370500,0.1483691,84697.0,84696.0,0.1796905]
[1744904370712,0.1180891,84697.0,84696.0,0.1796905]
[1744904371402,0.1505891,84697.0,84696.0,0.0616]
[1744904371606,0.1814891,84697.0,84696.0,0.1796905]
[1744904372007,0.1815691,84697.0,84696.0,0.0315]
[1744904372207,0.1815691,84697.0,84696.0,0.1495905]
[1744904373209,0.1181691,84697.0,84696.0,0.1807905]
[1744904374119,0.1180891,84697.0,84696.0,0.1807905]
[1744904374322,0.1180891,84697.0,84696.0,0.5415905]
[1744904374521,0.1181691,84697.0,84696.0,0.5737905]
[1744904375218,0.1180891,84697.0,84696.0,0.5737905]
[1744904375414,0.0590407,84703.0,84702.0,0.1180822]
[1744904375817,0.00017711,84704.0,84703.0,0.1180808]
[1744904376021,0.00017711,84704.0,84703.0,0.5114808]
[1744904376211,0.00017711,84704.0,84703.0,0.5440808]
[1744904376413,0.00010801,84712.0,84711.0,0.1180696]
[1744904376609,0.11817621,84712.0,84711.0,0.4788696]
[1744904376813,0.1180682,84712.0,84711.0,0.4788696]
[1744904377012,0.1181482,84712.0,84711.0,0.49042774]
[1744904379717,0.1181482,84712.0,84711.0,0.37235814]
[1744904379915,0.1819482,84712.0,84711.0,0.49042774]
[1744904380411,0.2137482,84712.0,84711.0,0.49042774]
[1744904382110,0.2137482,84712.0,84711.0,0.3608]
[1744904382316,0.1180738,84708.0,84707.0,0.08408]
[1744904382819,0.1803738,84708.0,84707.0,0.2021552]
[1744904383624,0.1803738,84708.0,84707.0,0.21403999]
[1744904383923,0.1804538,84708.0,84707.0,0.21403999]
[1744904385723,0.1181538,84708.0,84707.0,0.21403999]
[1744904385928,0.1181538,84708.0,84707.0,0.09596479]
[1744904386228,0.1482538,84708.0,84707.0,0.08408]
[1744904386427,0.1812538,84708.0,84707.0,0.08408]
[1744904387322,0.1180794,84704.0,84700.0,0.02064857]
[1744904387713,0.1835794,84704.0,84701.0,0.1180831]
[1744904388220,0.1835794,84704.0,84700.0,0.02064857]
[1744904388924,0.1835794,84704.0,84700.0,0.00869661]
[1744904389113,0.1835794,84704.0,84703.0,0.00017711]
[1744904390824,0.2335794,84704.0,84703.0,0.00017711]
[1744904392624,0.2335794,84704.0,84703.0,0.11825791]
[1744904392829,0.2335794,84704.0,84703.0,0.00017711]
[1744904393021,0.2335794,84704.0,84703.0,0.11825791]
[1744904393423,0.2336594,84704.0,84703.0,0.00017711]
[1744904395031,0.1681594,84704.0,84703.0,0.00017711]
[1744904395233,0.1681594,84704.0,84703.0,0.18435791]
[1744904395622,0.1680794,84704.0,84703.0,0.18435791]
[1744904395935,0.1681594,84704.0,84703.0,0.18435791]
[1744904397637,0.1680794,84704.0,84703.0,0.18435791]
[1744904398637,0.05008,84704.0,84703.0,0.18435791]
[1744904399625,0.05,84704.0,84703.0,0.18435791]
[1744904399831,0.0309,84719.0,84718.0,0.1180599]
[1744904400033,0.11823385,84720.0,84719.0,0.1180585]
[1744904400224,0.22823385,84720.0,84719.0,0.1180585]
[1744904400425,0.22831385,84720.0,84719.0,0.1180585]
[1744904401429,0.25921385,84720.0,84719.0,0.1180585]
[1744904401635,0.1180599,84718.0,84717.0,0.0322]
[1744904401836,0.2280599,84718.0,84717.0,0.0322]
[1744904402130,0.2912599,84718.0,84717.0,0.0322]
[1744904403735,0.2912599,84718.0,84717.0,0.1502613]
[1744904403936,0.11,84718.0,84717.0,0.1829613]
[1744904404138,0.00108015,84722.0,84721.0,0.1180557]
[1744904404348,2e-08,84722.0,84721.0,0.6284557]
[1744904404932,0.11813432,84722.0,84721.0,0.6284557]
[1744904405235,8.002e-05,84722.0,84721.0,0.6284557]
[1744904405637,2e-08,84722.0,84721.0,0.6284557]
[1744904406542,8.002e-05,84722.0,84721.0,0.6284557]
[1744904406741,2e-08,84722.0,84721.0,0.6284557]
[1744904407230,8.002e-05,84722.0,84721.0,0.6284557]
[1744904411847,2e-08,84722.0,84721.0,0.6284557]
[1744904412046,8.002e-05,84722.0,84721.0,0.6284557]
[1744904413137,0.14813432,84722.0,84721.0,0.5444557]
[1744904413344,0.14813432,84722.0,84721.0,0.6284557]
[1744904413537,0.21063432,84722.0,84721.0,0.6284557]
[1744904413737,0.24093432,84722.0,84721.0,0.6284557]
[1744904414338,0.24093432,84722.0,84721.0,0.0329]
[1744904414649,0.24093432,84722.0,84717.0,0.08396]
[1744904414650,0.1180599,84718.0,84717.0,0.08396]
[1744904414844,0.1480599,84718.0,84717.0,0.2327213]
[1744904415049,0.1380599,84718.0,84717.0,0.2327213]
[1744904415547,0.1380599,84718.0,84717.0,0.2652213]
[1744904416047,0.1381399,84718.0,84717.0,0.2652213]
[1744904416748,0.1381399,84718.0,84717.0,0.2662213]
[1744904419855,0.1381399,84718.0,84717.0,0.08496]
[1744904420054,0.2031399,84718.0,84717.0,0.08496]
[1744904420849,0.1702399,84718.0,84717.0,0.08496]
[1744904421659,0.1702399,84718.0,84717.0,0.2030213]
[1744904421851,0.1381399,84718.0,84717.0,0.2030213]
[1744904422050,0.1381399,84718.0,84717.0,0.2680213]
[1744904422356,0.1380599,84718.0,84717.0,0.2670213]
[1744904422555,0.02,84718.0,84717.0,0.2670213]
[1744904422750,2e-08,84722.0,84721.0,0.1180557]
[1744904422950,0.11805432,84722.0,84721.0,0.1781557]
[1744904423966,0.11813432,84722.0,84721.0,0.1781557]
[1744904424144,0.12805432,84722.0,84721.0,0.1781557]
[1744904424347,0.16075432,84722.0,84721.0,0.1781557]
[1744904424544,0.16083432,84722.0,84721.0,0.1781557]
[1744904424848,0.19263432,84722.0,84721.0,0.1781557]
[1744904425643,0.16083432,84722.0,84721.0,0.1781557]
[1744904426045,0.12813432,84722.0,84721.0,0.1781557]
[1744904426251,0.01008002,84722.0,84721.0,0.1781557]
[1744904426556,8.002e-05,84722.0,84721.0,0.1781557]
[1744904426759,2e-08,84722.0,84721.0,0.1781557]
[1744904427445,8.002e-05,84722.0,84721.0,0.1781557]
[1744904427648,0.11813432,84722.0,84721.0,0.1781557]
[1744904427952,0.13813432,84722.0,84721.0,0.1781557]
[1744904428255,0.13813432,84722.0,84721.0,0.1480557]
[1744904428758,0.1180571,84720.0,84719.0,0.478858]
[1744904429057,0.1480571,84720.0,84719.0,0.478858]
[1744904429453,0.2103571,84720.0,84719.0,0.478858]
[1744904430560,0.2103571,84720.0,84719.0,0.509358]
[1744904430954,0.1798371,84720.0,84719.0,0.509358]
[1744904431155,0.1798371,84720.0,84719.0,0.478858]
[1744904436054,0.06178,84720.0,84719.0,0.478858]
[1744904436256,0.1797571,84720.0,84719.0,0.478858]
[1744904436448,0.1798371,84720.0,84719.0,0.542158]
[1744904436649,0.1797571,84720.0,84719.0,0.542158]
[1744904436853,0.1798371,84720.0,84719.0,0.542158]
[1744904437060,0.1481371,84720.0,84719.0,0.542158]
[1744904437959,0.03008,84720.0,84719.0,0.542158]
[1744904438161,0.1481371,84720.0,84719.0,0.542158]
[1744904438363,0.1481371,84720.0,84719.0,0.574258]
[1744904438660,0.1480571,84720.0,84719.0,0.574258]
[1744904438865,0.1481371,84720.0,84719.0,0.574258]
[1744904439654,0.1481371,84720.0,84719.0,0.542158]
[1744904439862,0.1784371,84720.0,84719.0,0.542158]
[1744904440062,0.2116371,84720.0,84719.0,0.542158]
[1744904440865,0.1784371,84720.0,84719.0,0.542158]
[1744904441365,0.1784371,84720.0,84719.0,0.626038]
[1744904442972,0.1484371,84720.0,84719.0,0.626038]
[1744904443272,0.1484371,84720.0,84719.0,0.50798]
[1744904443469,0.1584371,84720.0,84719.0,0.47598]
[1744904443671,0.1916371,84720.0,84719.0,0.5940385]
[1744904444163,0.1916371,84720.0,84719.0,0.3921]
[1744904444469,0.1916371,84720.0,84719.0,0.5101585]
[1744904444668,0.1281371,84720.0,84719.0,0.5101585]
[1744904445370,0.1281371,84720.0,84719.0,0.5419585]
[1744904446074,0.1281371,84720.0,84719.0,0.1811585]
[1744904446658,0.1590371,84720.0,84719.0,0.1811585]
[1744904447759,0.1917371,84720.0,84719.0,0.1811585]
[1744904448467,0.1962371,84720.0,84719.0,0.1811585]
[1744904450767,0.2269371,84720.0,84719.0,0.1811585]
[1744904451968,0.1942371,84720.0,84719.0,0.1811585]
[1744904453362,0.2267371,84720.0,84719.0,0.1811585]
[1744904454665,0.1180599,84718.0,84717.0,0.3608]
[1744904454876,0.1180627,84716.0,84715.0,0.08388]
[1744904455073,0.1480627,84716.0,84715.0,0.08388]
[1744904455372,0.1805627,84716.0,84715.0,0.08388]
[1744904455968,0.2107627,84716.0,84715.0,0.08388]
[1744904456274,0.2107627,84716.0,84715.0,0.11848]
[1744904456470,0.2107627,84716.0,84715.0,0.236544]
[1744904457174,0.2107627,84716.0,84715.0,0.152664]
[1744904457674,0.2107627,84716.0,84715.0,0.185664]
[1744904457873,0.1782627,84716.0,84715.0,0.185664]
[1744904458070,0.1480627,84716.0,84715.0,0.185664]
[1744904459466,0.1481427,84716.0,84715.0,0.185664]
[1744904461766,8e-05,84716.0,84715.0,0.185664]
[1744904462273,0.1180627,84716.0,84715.0,0.2446953]
[1744904462467,0.1181427,84716.0,84715.0,0.1856626]
[1744904464171,0.1181427,84716.0,84715.0,0.0676]
[1744904464371,0.1781427,84716.0,84715.0,0.0356]
[1744904464574,0.1180738,84708.0,84703.0,0.00017711]
[1744904464774,0.1180794,84704.0,84703.0,0.08397711]
[1744904464971,0.4988794,84704.0,84703.0,0.08397711]
[1744904465167,0.4988794,84704.0,84703.0,0.00017711]
[1744904466477,0.4998794,84704.0,84703.0,0.00517711]
[1744904468366,0.4998794,84704.0,84703.0,0.00817711]
[1744904470676,0.1390794,84704.0,84703.0,0.00817711]
[1744904470987,0.1390794,84704.0,84703.0,0.12625791]
[1744904470988,0.001,84704.0,84703.0,0.12625791]
[1744904471209,0.1190794,84704.0,84703.0,0.19125791]
[1744904471488,0.1191594,84704.0,84703.0,0.30765791]
[1744904473985,0.1217594,84704.0,84703.0,0.27445791]
[1744904474182,0.1317594,84704.0,84703.0,0.15637711]
[1744904474388,0.1317594,84704.0,84703.0,0.27445791]
[1744904474682,0.1317594,84704.0,84703.0,0.15637711]
[1744904474880,0.1317594,84704.0,84703.0,0.27445791]
[1744904475581,0.1317594,84704.0,84703.0,0.15637711]
[1744904475777,0.1317594,84704.0,84703.0,0.27445791]
[1744904475979,0.1317594,84704.0,84703.0,0.15637711]
[1744904476174,0.1624594,84704.0,84703.0,0.15637711]
[1744904476379,0.1624594,84704.0,84703.0,0.12377711]
[1744904476579,0.1931594,84704.0,84703.0,0.12377711]
[1744904478579,0.1931594,84704.0,84703.0,0.03997711]
[1744904478879,0.1931594,84704.0,84703.0,0.00817711]
[1744904479379,0.1180877,84698.0,84697.0,0.0323]
[1744904479582,0.0590462,84695.0,84684.0,0.3608]
[1744904479773,0.1181059,84685.0,84684.0,0.3608]
[1744904479971,0.1281059,84685.0,84684.0,0.3608]
[1744904480370,0.1281059,84685.0,84684.0,0.49045331]
[1744904481883,0.1281059,84685.0,84684.0,0.37234601]
[1744904482181,0.1301059,84685.0,84682.0,0.0318]
[1744904482387,0.118117,84677.0,84676.0,0.00017711]
[1744904482572,0.138117,84677.0,84676.0,0.00017711]
[1744904483673,0.201317,84677.0,84676.0,0.00017711]
[1744904484184,0.170717,84677.0,84676.0,0.06347711]
[1744904484788,0.170797,84677.0,84676.0,0.06347711]
[1744904485178,0.170797,84677.0,84676.0,0.18159551]
[1744904485373,0.171797,84677.0,84676.0,0.18159551]
[1744904485775,0.140197,84677.0,84676.0,0.18159551]
[1744904485975,0.02308,84677.0,84676.0,0.18259551]
[1744904486177,0.121197,84677.0,84676.0,0.18259551]
[1744904486378,0.121117,84677.0,84676.0,0.18259551]
[1744904486781,0.121197,84677.0,84676.0,0.18259551]
[1744904487086,0.00308,84677.0,84676.0,0.43259551]
[1744904487278,0.003,84677.0,84676.0,0.43259551]
[1744904487474,0.00308,84677.0,84676.0,0.43259551]
[1744904488074,0.121197,84677.0,84676.0,0.43259551]
[1744904488287,0.119197,84677.0,84676.0,0.18259551]
[1744904488494,8e-05,84677.0,84676.0,0.18359551]
[1744904488993,0.118197,84677.0,84676.0,0.18359551]
[1744904491888,0.118197,84677.0,84676.0,0.16119551]
[1744904492789,0.118197,84677.0,84676.0,0.24495551]
[1744904493792,0.128197,84677.0,84676.0,0.24495551]
[1744904494091,0.118197,84677.0,84676.0,0.24495551]
[1744904494480,8e-05,84677.0,84676.0,0.24495551]
[1744904497477,0.118197,84677.0,84676.0,0.24495551]
[1744904497883,0.149497,84677.0,84676.0,0.24495551]
[1744904498387,8e-05,84677.0,84676.0,0.24495551]
[1744904500394,0.033,84683.0,84679.0,0.2362223]
[1744904500584,0.1511087,84683.0,84682.0,0.3608]
[1744904500896,0.2011087,84683.0,84682.0,0.3608]
[1744904501696,0.2011087,84683.0,84682.0,0.4789101]
[1744904502092,0.2021087,84683.0,84682.0,0.5120101]
[1744904502389,0.2031087,84683.0,84682.0,0.5120101]
[1744904502695,0.2021087,84683.0,84682.0,0.5120101]
[1744904502991,0.085,84683.0,84682.0,0.5120101]
[1744904503196,0.052,84683.0,84682.0,0.5120101]
[1744904503497,0.05208,84683.0,84682.0,0.5120101]
[1744904503789,0.00508,84683.0,84682.0,0.5120101]
[1744904504191,0.005,84683.0,84682.0,0.5120101]
[1744904504392,0.1231887,84683.0,84682.0,0.5120101]
[1744904504891,0.00508,84683.0,84682.0,0.5120101]
[1744904508298,0.1231887,84683.0,84682.0,0.5120101]
[1744904508501,0.1544887,84683.0,84682.0,0.5120101]
[1744904508891,0.00508,84683.0,84682.0,0.5120101]
[1744904509392,0.1231087,84683.0,84682.0,0.5120101]
[1744904509794,0.1231887,84683.0,84682.0,0.5120101]
[1744904510500,0.1853887,84683.0,84682.0,0.5120101]
[1744904513098,0.1953887,84683.0,84682.0,0.4789101]
[1744904515891,0.1953887,84683.0,84682.0,0.5106101]
[1744904516606,0.1943887,84683.0,84682.0,0.5106101]
[1744904516807,0.1953887,84683.0,84682.0,0.5106101]
[1744904517108,0.1953887,84683.0,84682.0,0.4789101]
[1744904518408,0.1943887,84683.0,84682.0,0.4789101]
[1744904519510,0.1986887,84683.0,84682.0,0.4789101]
[1744904522098,0.1986887,84683.0,84682.0,0.3608]
[1744904522298,0.0590578,84678.0,84676.0,0.2079761]
[1744904522509,0.214817,84677.0,84676.0,0.0898591]
[1744904522705,0.234817,84677.0,84676.0,0.0590591]
[1744904523210,0.235817,84677.0,84676.0,0.0590591]
[1744904523610,0.235817,84677.0,84676.0,0.0600591]
[1744904523913,0.235817,84677.0,84676.0,0.0610591]
[1744904524513,0.235817,84677.0,84676.0,0.0600591]
[1744904524910,0.235817,84677.0,84676.0,0.001]
[1744904525307,0.235817,84677.0,84675.0,0.1181195]
[1744904525308,0.1181184,84676.0,84675.0,0.1181195]
[1744904525502,0.1481184,84676.0,84675.0,0.1502195]
[1744904525704,0.2132184,84676.0,84675.0,0.1502195]
[1744904526200,0.2142184,84676.0,84675.0,0.1502195]
[1744904526612,0.2142184,84676.0,84675.0,0.1512195]
[1744904527199,0.2142184,84676.0,84675.0,0.0331]
[1744904528709,0.1181212,84674.0,84673.0,0.3608]
[1744904528904,0.1481212,84674.0,84673.0,0.3608]
[1744904529111,0.2135212,84674.0,84673.0,0.3608]
[1744904531018,0.1181282,84669.0,84668.0,0.00017711]
[1744904531224,0.1181435,84658.0,84657.0,0.00904102]
[1744904531406,0.1181463,84656.0,84655.0,0.3608]
[1744904531718,0.1381463,84656.0,84655.0,0.3608]
[1744904532218,0.1381463,84656.0,84655.0,0.49097652]
[1744904532219,0.2012463,84656.0,84655.0,0.49097652]
[1744904532611,0.2022463,84656.0,84655.0,0.49097652]
[1744904532910,0.2022463,84656.0,84655.0,0.4998195]
[1744904533112,0.2013263,84656.0,84655.0,0.4998195]
[1744904533811,0.1392263,84656.0,84655.0,0.4998195]
[1744904534220,0.1382263,84656.0,84655.0,0.4998195]
[1744904534513,0.1382263,84656.0,84655.0,0.5008195]
[1744904535103,0.1695263,84656.0,84655.0,0.4154718]
[1744904535303,0.1695263,84656.0,84655.0,0.3826718]
[1744904535807,0.1392263,84656.0,84655.0,0.5008195]
[1744904536305,0.1382263,84656.0,84655.0,0.5336195]
[1744904536705,0.1684463,84656.0,84655.0,0.5336195]
[1744904536911,0.1685263,84656.0,84655.0,0.5336195]
[1744904537307,0.1382263,84656.0,84655.0,0.5336195]
[1744904538515,0.1392263,84656.0,84655.0,0.4154718]
[1744904538734,0.1700263,84656.0,84655.0,0.4154718]
[1744904539106,0.1690263,84656.0,84655.0,0.4154718]
[1744904539721,0.1991263,84656.0,84655.0,0.4154718]
[1744904540110,0.2001263,84656.0,84655.0,0.4154718]
[1744904541217,0.2001263,84656.0,84655.0,0.4144718]
[1744904541411,0.2011263,84656.0,84655.0,0.4144718]
[1744904542115,0.2011263,84656.0,84655.0,0.3816718]
[1744904543322,0.2011263,84656.0,84655.0,0.36964298]
[1744904543526,0.2011263,84656.0,84647.0,0.01225108]
[1744904543527,0.1181575,84648.0,84647.0,0.01225108]
[1744904543824,0.1381575,84648.0,84647.0,0.00017711]
[1744904544022,0.2340575,84648.0,84647.0,0.00017711]
[1744904544222,0.2350575,84648.0,84647.0,0.00017711]
[1744904544614,0.2360575,84648.0,84647.0,0.00117711]
[1744904545326,0.2350575,84648.0,84647.0,0.03277711]
[1744904545819,0.2350575,84648.0,84647.0,0.04164421]
[1744904548813,0.1391575,84648.0,84647.0,0.04164421]
[1744904549119,0.1381575,84648.0,84647.0,0.19180311]
[1744904549320,0.1697575,84648.0,84647.0,0.19180311]
[1744904549518,0.1698375,84648.0,84647.0,0.19180311]
[1744904550622,0.1698375,84648.0,84647.0,0.07364421]
[1744904550927,0.1382375,84648.0,84647.0,0.19180311]
[1744904551825,0.1381575,84648.0,84647.0,0.19180311]
[1744904552028,8e-05,84648.0,84647.0,0.55260311]
[1744904552323,0.0590772,84651.0,84650.0,0.1181491]
[1744904553027,0.0590772,84651.0,84650.0,0.2018291]
[1744904553326,0.0600772,84651.0,84650.0,0.2018291]
[1744904553732,0.2373128,84651.0,84650.0,0.2018291]
[1744904554820,0.1191553,84651.0,84650.0,0.2018291]
[1744904555227,0.1191553,84651.0,84650.0,0.2656291]
[1744904555429,0.1201553,84651.0,84650.0,0.2656291]
[1744904556123,0.0610772,84651.0,84650.0,0.2656291]
[1744904556324,0.002,84651.0,84650.0,0.2656291]
[1744904556825,0.1201533,84651.0,84650.0,0.2656291]
[1744904557333,0.1201533,84651.0,84650.0,0.14748]
[1744904557519,0.1531533,84651.0,84650.0,0.14748]
[1744904557835,0.1631533,84651.0,84650.0,0.2656347]
[1744904558324,0.1631533,84651.0,84650.0,0.14748]
[1744904558521,0.1951533,84651.0,84650.0,0.11488]
[1744904558827,0.1951533,84651.0,84645.0,0.01161871]
[1744904558828,0.1181603,84646.0,84645.0,0.01161871]
[1744904559039,0.1181617,84645.0,84644.0,0.0314]
[1744904559224,0.2031617,84645.0,84644.0,0.0314]
[1744904559620,0.1181645,84643.0,84642.0,0.0120256]
[1744904559821,0.1181659,84642.0,84641.0,0.0139305]
[1744904560027,0.1995659,84642.0,84641.0,0.0139305]
[1744904560225,0.2315659,84642.0,84641.0,0.0139305]
[1744904560427,0.059086,84638.0,84634.0,0.00017722]
[1744904560634,0.1181756,84635.0,84634.0,0.00017722]
[1744904560822,0.1381756,84635.0,84634.0,0.11835422]
[1744904561028,0.1381756,84635.0,84634.0,0.12992101]
[1744904561247,0.1391756,84635.0,84634.0,0.12992101]
[1744904563139,0.1401756,84635.0,84634.0,0.12992101]
[1744904563534,0.002,84635.0,84634.0,0.49965635]
[1744904563739,0.1202556,84635.0,84634.0,0.49965635]
[1744904564143,0.1201756,84635.0,84634.0,0.49965635]
[1744904564339,0.1202556,84635.0,84634.0,0.49965635]
[1744904567344,0.1534556,84635.0,84634.0,0.52995635]
[1744904567545,0.1843556,84635.0,84634.0,0.52995635]
[1744904568749,0.1943556,84635.0,84634.0,0.52995635]
[1744904571246,0.1943556,84635.0,84634.0,0.41177935]
[1744904571441,0.1943556,84635.0,84634.0,0.36991256]
[1744904572246,0.1942756,84635.0,84634.0,0.36991256]
[1744904572548,0.1943556,84635.0,84634.0,0.36991256]
[1744904573449,0.1943556,84635.0,84634.0,0.48808956]
[1744904573649,0.1943556,84635.0,84634.0,0.36991256]
[1744904574650,0.1943556,84635.0,84634.0,0.00911256]
[1744904579348,0.1181882,84626.0,84624.0,0.0314]
[1744904579553,0.1281882,84626.0,84624.0,0.0314]
[1744904579853,0.1181896,84625.0,84624.0,0.0314]
[1744904580148,0.1291896,84625.0,84624.0,0.04025083]
[1744904580336,0.1607896,84625.0,84624.0,0.15844183]
[1744904580738,0.1912896,84625.0,84624.0,0.15844183]
[1744904580941,0.1912896,84625.0,84624.0,0.170519]
[1744904581148,0.1912896,84625.0,84624.0,0.202919]
[1744904581547,0.1596896,84625.0,84624.0,0.202919]
[1744904582048,0.1191896,84625.0,84624.0,0.202919]
[1744904582245,0.002,84625.0,84624.0,0.202919]
[1744904582952,0.1202696,84625.0,84624.0,0.202919]
[1744904584535,0.1202696,84625.0,84624.0,0.286519]
[1744904585037,0.2141696,84625.0,84624.0,0.286519]
[1744904585945,0.2241696,84625.0,84624.0,0.286519]
[1744904586747,0.2241696,84625.0,84624.0,0.255119]
[1744904588148,0.2241696,84625.0,84624.0,0.285219]
[1744904592257,0.09598,84625.0,84624.0,0.285219]
[1744904592451,0.2141696,84625.0,84624.0,0.285219]
[1744904592648,0.2140896,84625.0,84624.0,0.285219]
[1744904592854,0.2141696,84625.0,84624.0,0.285219]
[1744904594147,0.2140896,84625.0,84624.0,0.285219]
[1744904594350,0.2141696,84625.0,84624.0,0.285219]
[1744904594555,0.1202696,84625.0,84624.0,0.222719]
[1744904608462,0.00208,84625.0,84624.0,0.222719]
[1744904608652,0.002,84625.0,84624.0,0.222719]
[1744904608849,0.00208,84625.0,84624.0,0.222719]
[1744904609264,0.00108,84625.0,84624.0,0.222719]
[1744904613268,0.00208,84625.0,84624.0,0.222719]
[1744904614275,0.00108,84625.0,84624.0,0.222719]
[1744904615472,0.05919791,84632.0,84631.0,0.1181812]
[1744904615656,0.00010801,84632.0,84631.0,0.4789812]
[1744904615860,0.07065307,84644.0,84643.0,0.1181645]
[1744904616060,0.18881617,84644.0,84643.0,0.4789645]
[1744904616272,0.07165307,84644.0,84643.0,0.4789645]
[1744904616471,0.07173307,84644.0,84643.0,0.4789645]
[1744904616674,0.07165307,84644.0,84643.0,0.4789645]
[1744904616863,0.07173307,84644.0,84643.0,0.4789645]
[1744904617061,0.07073307,84644.0,84643.0,0.4789645]
[1744904617266,0.07165307,84644.0,84643.0,0.4789645]
[1744904617460,0.07173307,84644.0,84643.0,0.4789645]
[1744904619674,0.07165307,84644.0,84643.0,0.4799645]
[1744904619973,0.07173307,84644.0,84643.0,0.4799645]
[1744904620763,0.07173307,84644.0,84643.0,0.5634845]
[1744904621566,0.00108,84644.0,84643.0,0.5634845]
[1744904622381,0.00208,84644.0,84643.0,0.5634845]
[1744904622565,0.1202431,84644.0,84643.0,0.5634845]
[1744904623679,0.00208,84644.0,84643.0,0.5634845]
[1744904624774,0.002,84644.0,84643.0,0.5634845]
[1744904624976,0.00208,84644.0,84643.0,0.5634845]
[1744904626376,0.002,84644.0,84643.0,0.5634845]
[1744904626772,0.00208,84644.0,84643.0,0.5634845]
[1744904629266,0.002,84644.0,84643.0,0.5634845]
[1744904629467,0.00208,84644.0,84643.0,0.5634845]
[1744904633180,0.1202431,84644.0,84643.0,0.5634845]
[1744904633478,0.00208,84644.0,84643.0,0.5634845]
[1744904634080,0.1202431,84644.0,84643.0,0.5634845]
[1744904635078,0.00208,84644.0,84643.0,0.5634845]
[1744904635583,0.1202431,84644.0,84643.0,0.5634845]
[1744904635879,0.1402431,84644.0,84643.0,0.3618]
[1744904636076,0.1402431,84644.0,84643.0,0.4799645]
[1744904637578,0.02208,84644.0,84643.0,0.4799645]
[1744904637780,0.00208,84644.0,84643.0,0.4799645]
[1744904638381,0.002,84644.0,84643.0,1.9799645]
[1744904638581,0.00208,84644.0,84643.0,1.9799645]
[1744904638882,0.002,84644.0,84643.0,1.9799645]
[1744904639583,0.00208,84644.0,84643.0,1.9799645]
[1744904639975,0.002,84644.0,84643.0,1.9799645]
[1744904640181,0.00108,84644.0,84643.0,1.9799645]
[1744904640383,0.001,84644.0,84643.0,1.9799645]
[1744904640570,0.00108,84644.0,84643.0,1.9799645]
[1744904641185,0.00208,84644.0,84643.0,2.0749645]
[1744904643078,0.00208,84644.0,84643.0,0.5749645]
[1744904643790,0.1202431,84644.0,84643.0,0.5749645]
[1744904643982,0.00208,84644.0,84643.0,0.5749645]
[1744904644385,0.1202431,84644.0,84643.0,0.5749645]
[1744904645391,0.00208,84644.0,84643.0,0.5749645]
[1744904646890,0.00208,84644.0,84643.0,0.2141645]
[1744904647089,0.00208,84644.0,84643.0,0.5749645]
[1744904648981,0.1202431,84644.0,84643.0,0.4568]
[1744904649182,0.1815431,84644.0,84643.0,0.4568]
[1744904649584,0.2117431,84644.0,84643.0,0.4568]
[1744904650185,0.1815431,84644.0,84643.0,0.4568]
[1744904651186,0.1815431,84644.0,84643.0,0.5749645]
[1744904652780,0.1815431,84644.0,84643.0,0.4568]
[1744904653794,0.1815431,84644.0,84643.0,0.3919]
[1744904653982,0.2133431,84644.0,84643.0,0.3919]
[1744904654692,0.1181687,84640.0,84639.0,0.033]
[1744904654887,0.1181742,84636.0,84635.0,0.00017722]
[1744904655084,0.1581742,84636.0,84635.0,0.00017722]
[1744904655276,0.2231742,84636.0,84635.0,0.00017722]
[1744904656092,0.1181826,84630.0,84629.0,0.033]
[1744904656285,0.1381826,84630.0,84629.0,0.033]
[1744904656477,0.1692826,84630.0,84629.0,0.033]
[1744904657079,0.1702826,84630.0,84629.0,0.033]
[1744904657584,0.1712826,84630.0,84629.0,0.033]
[1744904658295,0.1712826,84630.0,84626.0,0.0314]
[1744904658296,0.1181868,84627.0,84626.0,0.0314]
[1744904658489,0.1481868,84627.0,84626.0,0.0314]
[1744904658808,0.1481868,84627.0,84626.0,1e-08]
[1744904659095,0.1182022,84616.0,84615.0,0.01377892]
[1744904659296,0.4890022,84616.0,84615.0,0.01377892]
[1744904659483,0.1282022,84616.0,84615.0,0.13198252]
[1744904660192,0.1292022,84616.0,84615.0,0.13198252]